bitfinex/quotes_SOLUSD_20251128
["timestamp","ask_amount","ask_price","bid_price","bid_amount"]
[1764346298241,3.66872338,140.93,140.91,0.68]
[1764346298617,3.66872338,140.92,140.88,0.68]
[1764346298915,104.1,140.93,140.89,0.68]
[1764346298916,3.66872338,140.91,140.89,0.68]
[1764346299842,10.76557273,140.91,140.89,0.68]
[1764346301742,10.76494818,140.92,140.89,0.68]
[1764346302422,7.0962248,140.92,140.89,0.68]
[1764346302743,10.76494818,140.92,140.89,0.68]
[1764346303831,111.19685309,140.91,140.89,0.68]
[1764346306421,114.86557647,140.91,140.89,0.68]
[1764346307818,111.19685309,140.91,140.89,0.68]
[1764346309322,111.19689923,140.91,140.89,0.68]
[1764346310142,107.76872338,140.9,140.87,0.66]
[1764346311349,10.76696301,140.88,140.86,3.14]
[1764346311748,10.76696301,140.88,140.86,3.8]
[1764346312855,10.76696301,140.88,140.85,0.1]
[1764346312856,3.66872338,140.87,140.85,0.1]
[1764346313057,3.66872338,140.86,140.85,0.1]
[1764346313367,3.66872338,140.86,140.8,0.66]
[1764346313368,24.84913027,140.85,140.8,0.66]
[1764346313545,3.66872338,140.83,140.8,0.66]
[1764346314237,3.66872338,140.82,140.8,0.66]
[1764346314439,3.66872338,140.84,140.8,0.66]
[1764346315354,7.10075978,140.83,140.8,0.66]
[1764346315543,10.76948316,140.83,140.8,0.66]
[1764346316842,10.76916764,140.84,140.8,0.66]
[1764346317026,3.66872338,140.83,140.8,0.66]
[1764346317444,10.76968176,140.83,140.8,0.66]
[1764346317635,3.66872338,140.83,140.8,0.66]
[1764346318252,24.84913027,140.85,140.8,0.66]
[1764346318451,3.66872338,140.83,140.8,0.66]
[1764346319241,3.66872338,140.83,140.81,8.80994492]
[1764346319442,104.1,140.84,140.81,8.80994492]
[1764346319649,104.1,140.84,140.82,0.66]
[1764346319948,7.09883935,140.87,140.82,0.66]
[1764346319949,3.66872338,140.87,140.83,8.80994492]
[1764346320154,10.23859106,140.88,140.84,0.66]
[1764346320155,3.66872338,140.86,140.84,0.66]
[1764346320727,3.66872338,140.87,140.84,0.66]
[1764346320934,10.23859106,140.88,140.84,0.66]
[1764346321136,17.74477722,140.89,140.84,0.66]
[1764346321137,24.83780125,140.92,140.85,8.80994492]
[1764346321351,3.66872338,140.89,140.85,8.80994492]
[1764346321545,3.66872338,140.89,140.86,0.66]
[1764346322258,3.66872338,140.88,140.86,0.66]
[1764346322456,10.76650443,140.89,140.86,0.66]
[1764346326347,7.09628466,140.92,140.88,3.66872338]
[1764346326653,7.09628466,140.92,140.85,0.28432314]
[1764346326654,3.66872338,140.9,140.85,0.28432314]
[1764346326871,3.66872338,140.9,140.87,0.66]
[1764346327363,3.66872338,140.88,140.85,0.66]
[1764346328445,24.83684668,140.92,140.85,7.75970516]
[1764346328650,3.66872338,140.88,140.85,7.75970516]
[1764346329055,24.83684668,140.92,140.86,0.66]
[1764346329239,3.66872338,140.89,140.86,0.66]
[1764346329434,3.66872338,140.91,140.87,8.80994492]
[1764346329638,28.50597434,140.92,140.88,0.66]
[1764346330035,10.76541232,140.92,140.88,0.66]
[1764346330455,7.09116436,141.03,140.88,0.94432314]
[1764346330655,3.86872338,141.05,140.92,2.34718394]
[1764346330656,2.34718394,140.97,140.92,2.34718394]
[1764346330858,3.14,141.01,140.89,0.66]
[1764346330859,2.34718394,140.94,140.89,0.66]
[1764346331054,2.34718394,140.98,140.89,0.66]
[1764346331055,2.34718394,140.93,140.9,11.94994492]
[1764346331248,2.34718394,140.92,140.9,0.67]
[1764346331456,2.34718394,140.92,140.89,0.67]
[1764346331657,2.34718394,140.93,140.89,0.67]
[1764346331868,2.34718394,140.92,140.89,0.67]
[1764346332252,2.34718394,140.93,140.89,0.67]
[1764346333568,2.34718394,140.93,140.89,7.76770472]
[1764346334076,2.34718394,140.93,140.9,0.67]
[1764346334371,2.34718394,140.93,140.88,19.3324167]
[1764346334554,2.34718394,140.93,140.89,0.67]
[1764346336159,2.34718394,140.93,140.89,7.76767349]
[1764346336761,9.44254783,140.94,140.9,0.71]
[1764346337472,25.69759976,140.98,140.9,9.51994492]
[1764346337473,9.44206168,140.95,140.9,9.51994492]
[1764346337670,2.34718394,140.95,140.91,8.80994492]
[1764346337874,9.44151467,140.96,140.91,12.65994492]
[1764346338075,2.34718394,140.96,140.92,0.71]
[1764346338378,2.34718394,140.96,140.92,7.80616087]
[1764346338763,2.34718394,140.96,140.93,0.71]
[1764346339575,9.44101027,140.97,140.93,0.71]
[1764346340479,2.34718394,140.96,140.93,0.71]
[1764346340873,9.44142509,140.96,140.93,0.71]
[1764346341167,7.09424115,140.96,140.93,0.71]
[1764346343162,9.44142509,140.96,140.93,0.71]
[1764346343479,17.73350633,140.98,140.93,0.71]
[1764346343773,7.09270161,140.99,140.94,11.15712886]
[1764346343977,7.09270161,140.99,140.95,5.48718394]
[1764346344173,7.09270161,140.99,140.96,0.71]
[1764346345282,2.34718394,141.01,140.96,0.71]
[1764346347060,2.34718394,141.01,140.96,3.05718394]
[1764346347261,7.09219858,141.0,140.97,0.71]
[1764346347465,111.19219858,141.0,140.97,0.71]
[1764346348058,104.1,141.0,140.97,7.80340224]
[1764346348264,2.34718394,141.01,140.97,7.80340224]
[1764346348579,2.34718394,141.01,140.98,0.71]
[1764346348879,2.34718394,141.0,140.97,7.80340224]
[1764346349090,7.09071999,141.03,140.98,0.71]
[1764346349261,0.2,141.04,141.02,2.34718394]
[1764346349460,0.2,141.04,141.03,2.34718394]
[1764346349660,0.2,141.04,141.03,12.151452]
[1764346349879,0.2,141.05,141.04,9.09426806]
[1764346350069,0.2,141.05,141.04,9.51994492]
[1764346350671,0.2,141.05,141.04,9.80426806]
[1764346350980,0.2,141.05,141.04,9.09426806]
[1764346351195,0.2,141.05,141.04,9.80426806]
[1764346351355,0.2,141.05,141.03,11.94994492]
[1764346351554,2.54718394,141.05,141.01,0.28432314]
[1764346351899,2.34718394,141.04,141.01,9.80426806]
[1764346352068,2.34718394,141.04,141.01,0.99432314]
[1764346352268,7.28992257,141.05,141.01,0.99432314]
[1764346352567,2.34718394,141.04,141.01,0.99432314]
[1764346353198,9.63710651,141.05,141.01,0.99432314]
[1764346353762,9.63710651,141.05,140.98,8.80994492]
[1764346353763,2.34718394,141.02,140.98,8.80994492]
[1764346353966,2.34718394,141.02,140.97,0.71]
[1764346353967,2.34718394,141.0,140.97,0.71]
[1764346354269,2.34718394,141.0,140.97,0.99432314]
[1764346354590,2.34718394,141.0,140.97,8.08795223]
[1764346354790,2.34718394,141.01,140.97,8.08795223]
[1764346355008,2.34718394,141.0,140.97,0.71]
[1764346355164,2.34718394,140.99,140.97,0.71]
[1764346355570,2.34718394,140.99,140.97,0.99432314]
[1764346355778,0.2,141.02,140.97,8.08787924]
[1764346355779,2.34718394,141.0,140.97,8.08787924]
[1764346355986,2.34718394,141.0,140.97,0.99432314]
[1764346356985,2.34718394,141.0,140.97,8.08791395]
[1764346358066,2.34718394,141.0,140.97,0.99432314]
[1764346358283,2.34718394,141.0,140.97,8.08798127]
[1764346358700,2.34718394,141.0,140.97,0.99432314]
[1764346359076,2.34718394,141.0,140.97,8.0879815]
[1764346360694,2.34718394,141.0,140.97,7.3779815]
[1764346360994,2.54718394,141.0,140.97,7.3779815]
[1764346361202,2.34718394,141.0,140.97,8.0979815]
[1764346362090,17.72745536,141.03,140.98,0.72]
[1764346362289,104.1,141.02,140.99,0.28432314]
[1764346362494,7.09018718,141.04,140.99,12.23426806]
[1764346362699,2.34718394,141.03,140.99,12.95426806]
[1764346362899,9.43737112,141.04,141.0,0.72]
[1764346363372,9.43737112,141.04,141.0,7.81192982]
[1764346363575,7.09018718,141.04,141.0,7.81192982]
[1764346363883,9.43737112,141.04,141.0,7.81192982]
[1764346365190,0.2,141.05,141.01,3.35150708]
[1764346365504,0.2,141.05,141.01,1.00432314]
[1764346365686,0.2,141.05,141.02,0.72]
[1764346366594,0.2,141.05,141.01,0.28432314]
[1764346366794,0.2,141.05,141.01,1.00432314]
[1764346366982,2.54718394,141.05,141.01,1.00432314]
[1764346367197,0.2,141.05,141.02,0.72]
[1764346367990,0.2,141.05,141.02,7.81094649]
[1764346368185,0.2,141.05,141.02,10.15813043]
[1764346368502,0.2,141.05,141.02,7.81094649]
[1764346370406,0.2,141.05,141.03,0.72]
[1764346370806,7.28972198,141.05,141.02,7.81094649]
[1764346371400,9.83690592,141.05,141.01,0.28432314]
[1764346371702,7.28972198,141.05,141.02,0.72]
[1764346372793,7.28972198,141.05,141.02,3.06718394]
[1764346373510,0.2,141.05,141.02,10.15823176]
[1764346373705,0.2,141.05,141.03,0.72]
[1764346373909,0.2,141.05,141.02,9.43823176]
[1764346374105,0.2,141.05,141.02,10.15823176]
[1764346375608,0.2,141.05,141.04,2.34718394]
[1764346375817,0.2,141.05,141.04,1.00432314]
[1764346376031,0.2,141.05,141.04,3.35150708]
[1764346376528,0.2,141.05,141.04,1.00432314]
[1764346376698,0.2,141.05,141.04,3.35150708]
[1764346377708,0.2,141.05,141.04,10.44169426]
[1764346378588,0.2,141.05,141.04,19.25163918]
[1764346378990,0.2,141.07,141.04,36.97710713]
[1764346379306,0.2,141.07,141.06,11.441452]
[1764346379490,0.2,141.07,141.06,14.581452]
[1764346379691,0.2,141.07,141.06,22.3906339]
[1764346380222,0.2,141.07,141.04,17.72546795]
[1764346380401,0.2,141.07,141.05,6.49150708]
[1764346380605,0.2,141.07,141.05,13.58115875]
[1764346380803,0.2,141.07,141.06,3.35150708]
[1764346381192,0.2,141.07,141.06,1.00432314]
[1764346381387,0.2,141.07,141.06,12.161452]
[1764346381592,0.2,141.07,141.06,19.2506339]
[1764346381902,0.2,141.07,141.06,13.58068898]
[1764346385196,103.7,141.09,141.06,10.51350504]
[1764346385396,103.7,141.09,141.07,3.06718394]
[1764346388115,103.7,141.09,141.07,0.72]
[1764346388591,103.7,141.09,141.06,7.37350504]
[1764346388797,106.44718394,141.09,141.06,10.2291819]
[1764346389038,104.1,141.09,141.06,10.2291819]
[1764346389522,103.7,141.09,141.06,10.9491819]
[1764346390026,103.7,141.08,141.06,10.9491819]
[1764346390233,103.7,141.08,141.06,3.86]
[1764346391244,103.7,141.08,141.06,10.64908987]
[1764346391741,103.7,141.08,141.06,3.56]
[1764346391947,103.7,141.07,141.05,3.14]
[1764346392115,103.7,141.07,141.05,3.82]
[1764346392433,103.7,141.07,141.06,0.68]
[1764346393018,0.2,141.12,141.06,13.43534596]
[1764346393019,4.2610779,141.12,141.06,13.43534596]
[1764346393346,0.6,141.12,141.07,3.6610779]
[1764346393556,4.2610779,141.12,141.08,3.82]
[1764346393723,7.48679344,141.11,141.08,3.14]
[1764346394941,7.48679344,141.11,141.08,3.82]
[1764346395250,7.48679344,141.11,141.08,3.14]
[1764346395929,7.48679344,141.11,141.09,0.68]
[1764346395930,7.08679344,141.11,141.09,0.68]
[1764346396141,7.08679344,141.11,141.08,3.82]
[1764346396651,7.47679344,141.11,141.08,3.82]
[1764346396853,7.47679344,141.11,141.08,3.14]
[1764346399223,7.08679344,141.11,141.08,3.82]
[1764346400221,7.08679344,141.11,141.08,7.4810779]
[1764346401152,7.08679344,141.11,141.08,3.82]
[1764346401938,103.7,141.1,141.08,3.82]
[1764346405253,103.7,141.1,141.08,3.14]
[1764346405829,103.7,141.1,141.08,3.82]
[1764346407450,103.7,141.1,141.08,3.14]
[1764346408157,103.7,141.1,141.08,3.82]
[1764346408455,7.08679344,141.11,141.08,3.82]
[1764346409533,7.28638119,141.12,141.09,0.68]
[1764346410659,7.28638119,141.12,141.08,3.14]
[1764346410847,7.67638119,141.12,141.09,0.68]
[1764346411580,0.2,141.12,141.1,3.6610779]
[1764346411852,0.2,141.12,141.11,12.75534596]
[1764346412054,0.2,141.12,141.11,13.43534596]
[1764346412865,0.2,141.12,141.11,20.52201593]
[1764346414236,0.2,141.12,141.11,23.66201593]
[1764346415051,0.2,141.12,141.11,20.00093803]
[1764346415373,0.2,141.12,141.11,23.66201593]
[1764346415552,0.2,141.12,141.11,20.52201593]
[1764346415750,0.2,141.12,141.11,23.66201593]
[1764346416640,0.2,141.12,141.11,3.6610779]
[1764346417554,0.2,141.12,141.11,4.3410779]
[1764346417753,0.2,141.12,141.1,3.14]
[1764346417957,0.2,141.12,141.1,3.82]
[1764346418164,0.2,141.12,141.1,7.4810779]
[1764346418350,0.2,141.12,141.1,14.56812004]
[1764346419641,0.39,141.11,141.06,0.68]
[1764346419862,0.39,141.11,141.08,0.28432314]
[1764346420066,7.28631579,141.12,141.08,3.94540104]
[1764346420274,7.28631579,141.12,141.08,4.62540104]
[1764346420475,7.28631579,141.12,141.09,0.68]
[1764346420749,7.28631579,141.12,141.09,4.3410779]
[1764346420951,0.2,141.12,141.09,4.3410779]
[1764346421151,0.2,141.12,141.1,0.72]
[1764346421349,0.2,141.12,141.1,3.6610779]
[1764346422050,0.2,141.12,141.09,11.46843299]
[1764346422374,0.2,141.12,141.09,7.80735509]
[1764346425585,103.9,141.12,141.09,7.80735509]
[1764346426181,103.9,141.12,141.09,11.46843299]
[1764346427462,104.09,141.11,141.07,0.72]
[1764346427664,104.09,141.11,141.08,3.14]
[1764346427867,104.09,141.11,141.07,0.72]
[1764346428073,103.7,141.11,141.08,0.72]
[1764346428281,110.78702644,141.11,141.08,0.72]
[1764346431617,103.7,141.1,141.08,0.72]
[1764346432279,103.7,141.1,141.08,7.80814052]
[1764346432677,103.7,141.1,141.08,0.72]
[1764346435382,0.39,141.09,141.05,0.14216157]
[1764346435692,0.39,141.09,141.05,4.00216157]
[1764346435901,10.74835321,141.1,141.05,4.00216157]
[1764346435902,11.13835321,141.1,141.05,4.00216157]
[1764346436109,11.13835321,141.1,141.06,0.72]
[1764346436398,28.85628375,141.1,141.06,0.72]
[1764346437103,28.46628375,141.1,141.05,10.37174898]
[1764346437330,4.0510779,141.09,141.05,11.09174898]
[1764346437473,0.39,141.09,141.06,0.72]
[1764346438099,7.08780938,141.09,141.06,0.72]
[1764346440277,7.47780938,141.09,141.05,11.09174898]
[1764346440478,103.7,141.08,141.05,10.37174898]
[1764346440668,103.7,141.08,141.06,0.72]
[1764346440872,103.7,141.08,141.05,11.09174898]
[1764346441081,103.7,141.08,141.05,10.37174898]
[1764346441283,103.7,141.08,141.06,0.72]
[1764346443305,111.1781901,141.08,141.05,7.08958741]
[1764346444114,110.7881901,141.08,141.05,7.80958741]
[1764346444612,103.7,141.08,141.06,0.72]
[1764346445892,103.7,141.08,141.06,4.66540104]
[1764346446110,103.7,141.08,141.06,3.94540104]
[1764346446285,103.7,141.08,141.07,0.72]
[1764346447211,103.7,141.08,141.07,11.23300251]
[1764346448416,103.7,141.08,141.07,14.89408041]
[1764346450023,103.7,141.08,141.07,11.23300251]
[1764346453527,103.7,141.08,141.07,3.42432314]
[1764346453689,103.7,141.08,141.06,0.72]
[1764346454402,103.7,141.08,141.06,3.06272558]
[1764346454804,103.7,141.08,141.07,0.72]
[1764346455591,103.7,141.08,141.07,3.06272558]
[1764346456090,103.7,141.08,141.07,10.15140495]
[1764346456602,103.7,141.08,141.07,7.80867937]
[1764346456801,20.25893911,141.12,141.08,8.80994492]
[1764346456802,0.2,141.12,141.08,8.80994492]
[1764346457006,0.2,141.12,141.1,2.34272558]
[1764346457505,0.2,141.12,141.1,3.06272558]
[1764346458108,0.2,141.12,141.1,10.14985664]
[1764346458502,0.2,141.12,141.11,12.15699364]
[1764346458918,0.2,141.12,141.11,3.14]
[1764346459720,0.2,141.12,141.11,15.29699364]
[1764346460731,0.2,141.12,141.11,22.38366361]
[1764346461234,0.2,141.12,141.11,19.32093803]
[1764346461409,0.2,141.12,141.11,20.04093803]
[1764346461728,0.2,141.12,141.11,22.38366361]
[1764346462031,0.2,141.12,141.11,21.66366361]
[1764346462518,0.2,141.12,141.11,22.38366361]
[1764346465821,0.2,141.12,141.11,3.14]
[1764346465996,0.59,141.12,141.1,5.48272558]
[1764346466197,0.59,141.12,141.1,3.14]
[1764346466825,0.2,141.12,141.1,3.14]
[1764346470337,103.9,141.12,141.1,3.14]
[1764346471820,103.9,141.12,141.1,5.48272558]
[1764346472322,103.9,141.12,141.1,13.28988198]
[1764346472526,103.9,141.12,141.1,10.14988198]
[1764346472729,103.9,141.12,141.1,13.28988198]
[1764346473431,104.29,141.12,141.1,3.14]
[1764346475125,103.9,141.12,141.1,3.14]
[1764346475930,103.9,141.12,141.1,12.56981417]
[1764346476136,103.9,141.12,141.1,13.28981417]
[1764346477409,103.9,141.12,141.1,6.20272558]
[1764346478335,103.9,141.12,141.11,3.06272558]
[1764346478720,103.9,141.12,141.11,2.34272558]
[1764346480243,103.9,141.12,141.1,13.28988184]
[1764346481838,103.9,141.12,141.1,12.56988184]
[1764346482139,103.9,141.12,141.1,2.34272558]
[1764346482509,103.9,141.12,141.1,3.05272558]
[1764346483326,103.9,141.12,141.1,10.13988184]
[1764346485518,103.9,141.12,141.09,3.14]
[1764346485519,110.98627944,141.12,141.09,3.14]
[1764346485725,104.09,141.11,141.07,0.71]
[1764346485925,103.7,141.1,141.06,21.38147979]
[1764346486127,103.7,141.1,141.06,22.09147979]
[1764346486339,104.09,141.1,141.06,22.09147979]
[1764346486520,0.39,141.09,141.06,19.03875421]
[1764346486726,0.39,141.09,141.06,19.74875421]
[1764346487130,124.99547471,141.1,141.06,13.28153487]
[1764346487317,125.38547471,141.1,141.06,13.28153487]
[1764346487517,7.08767453,141.09,141.06,13.28153487]
[1764346487748,7.08767453,141.09,141.06,10.93880929]
[1764346487915,7.47767453,141.09,141.06,10.22880929]
[1764346488117,7.08767453,141.09,141.06,3.14]
[1764346488336,0.39,141.08,141.03,7.80044782]
[1764346488539,0.39,141.08,141.04,5.48272558]
[1764346488730,18.11871603,141.08,141.04,6.19272558]
[1764346489236,18.11871603,141.08,141.05,2.34272558]
[1764346489646,7.08867937,141.07,141.05,2.34272558]
[1764346490225,7.08867937,141.07,141.05,3.05272558]
[1764346490543,25.20707692,141.08,141.05,3.05272558]
[1764346491042,7.08836089,141.08,141.06,2.34272558]
[1764346492738,7.08836089,141.08,141.06,3.05272558]
[1764346492941,7.08836089,141.08,141.06,2.34272558]
[1764346493445,7.08836089,141.08,141.05,10.14239687]
[1764346494350,17.70803025,141.09,141.05,10.14239687]
[1764346494548,17.70803025,141.09,141.05,7.79967129]
[1764346494742,17.70803025,141.09,141.05,10.14239687]
[1764346495050,0.39,141.08,141.05,3.05272558]
[1764346496160,17.23030142,141.09,141.05,3.05272558]
[1764346496333,17.62030142,141.09,141.05,3.05272558]
[1764346496929,0.39,141.08,141.04,3.14]
[1764346497135,2.73272558,141.08,141.04,0.28432314]
[1764346497358,24.03122403,141.08,141.04,0.28432314]
[1764346497656,0.39,141.07,141.04,0.28432314]
[1764346498024,12.33994492,141.07,141.04,0.28432314]
[1764346498224,19.42868505,141.07,141.04,0.28432314]
[1764346498553,12.33994492,141.07,141.04,8.08449399]
[1764346499358,0.39,141.07,141.04,8.08449399]
[1764346499546,12.33994492,141.07,141.04,8.08449399]
[1764346499935,0.39,141.07,141.04,10.42721957]
[1764346500133,12.33994492,141.08,141.05,10.14218451]
[1764346500462,10.61781134,141.09,141.05,10.14218451]
[1764346500661,28.34405494,141.09,141.05,10.14218451]
[1764346500846,28.34405494,141.09,141.05,7.79945893]
[1764346501159,0.39,141.08,141.05,7.08945893]
[1764346501356,0.39,141.08,141.05,7.79945893]
[1764346501559,20.45896918,141.08,141.05,7.79945893]
[1764346501756,20.45896918,141.08,141.05,7.08945893]
[1764346502338,18.1162436,141.08,141.05,7.79945893]
[1764346503057,17.7262436,141.08,141.05,7.79945893]
[1764346503457,18.1162436,141.08,141.05,7.08945893]
[1764346503661,27.54758916,141.08,141.04,8.08445901]
[1764346504744,24.81486358,141.08,141.05,10.14231474]
[1764346504947,24.81486358,141.08,141.06,2.62704872]
[1764346504948,17.7262436,141.08,141.06,2.62704872]
[1764346505161,17.7262436,141.08,141.07,2.62704872]
[1764346505351,110.78758683,141.1,141.07,3.33704872]
[1764346505561,110.78758683,141.1,141.08,3.05272558]
[1764346505761,110.78758683,141.1,141.07,3.33704872]
[1764346506142,12.96031241,141.1,141.06,0.28432314]
[1764346506342,12.96031241,141.1,141.06,0.99432314]
[1764346506564,0.39,141.09,141.06,0.28432314]
[1764346506861,12.57031241,141.1,141.06,0.28432314]
[1764346507037,12.96031241,141.1,141.06,0.99432314]
[1764346509168,10.61758683,141.1,141.06,0.99432314]
[1764346510264,10.61758683,141.1,141.06,0.28432314]
[1764346510434,12.96031241,141.1,141.06,0.99432314]
[1764346511847,116.66031241,141.1,141.06,0.99432314]
[1764346512245,133.98824295,141.1,141.05,2.34272558]
[1764346512453,0.39,141.09,141.05,0.28432314]
[1764346512669,7.08817692,141.08,141.05,0.98432314]
[1764346512974,7.08817692,141.08,141.06,0.7]
[1764346513156,7.08817692,141.08,141.05,0.98432314]
[1764346513562,7.08817692,141.08,141.06,0.7]
[1764346514669,7.08767453,141.09,141.06,0.7]
[1764346516582,114.31748246,141.1,141.06,0.7]
[1764346516875,16.508864,141.12,141.08,3.66182531]
[1764346517279,0.2,141.12,141.1,3.66182531]
[1764346517450,0.2,141.12,141.11,3.66182531]
[1764346517651,0.2,141.12,141.11,4.33182531]
[1764346518152,0.2,141.12,141.11,0.67]
[1764346518347,0.2,141.12,141.1,4.61614845]
[1764346518551,0.2,141.12,141.11,0.67]
[1764346519254,0.2,141.12,141.1,3.94614845]
[1764346519255,7.2861678,141.12,141.1,0.28432314]
[1764346519454,7.2861678,141.12,141.1,0.95432314]
[1764346519864,0.2,141.12,141.1,0.95432314]
[1764346520076,0.2,141.12,141.11,0.67]
[1764346523572,4.25182531,141.12,141.09,0.28432314]
[1764346523899,7.67633979,141.12,141.08,7.08771651]
[1764346524105,3.66182531,141.11,141.08,7.75771651]
[1764346524390,10.9481651,141.12,141.08,7.75771651]
[1764346524687,4.05182531,141.11,141.08,0.95432314]
[1764346524984,4.05182531,141.11,141.07,7.75853705]
[1764346525159,4.05182531,141.11,141.08,0.67]
[1764346525359,3.66182531,141.11,141.08,0.67]
[1764346525570,7.08717221,141.1,141.08,0.67]
[1764346526785,0.39,141.1,141.07,7.08853705]
[1764346527289,0.39,141.1,141.04,16.308864]
[1764346527290,3.66182531,141.09,141.04,4.33182531]
[1764346527587,3.66182531,141.09,141.05,0.28432314]
[1764346527787,3.66182531,141.07,141.02,0.67]
[1764346527963,3.66182531,141.06,141.02,0.67]
[1764346528297,3.66182531,141.06,141.02,0.95432314]
[1764346528466,3.66182531,141.06,141.02,0.67]
[1764346528662,4.05182531,141.06,141.03,0.95432314]
[1764346528860,10.75117059,141.06,141.03,0.95432314]
[1764346529202,10.75117059,141.06,141.03,0.67]
[1764346529486,10.75117059,141.06,141.03,0.81216157]
[1764346529669,7.08934528,141.06,141.04,0.67]
[1764346530185,7.08867937,141.07,141.04,0.67]
[1764346530364,11.14050468,141.07,141.04,0.67]
[1764346531489,10.75050468,141.07,141.04,0.67]
[1764346531858,7.08867937,141.07,141.04,0.67]
[1764346533279,7.08867937,141.07,141.04,4.33182531]
[1764346533581,7.47867937,141.07,141.04,0.67]
[1764346533767,7.08867937,141.07,141.04,0.67]
[1764346534085,7.47832128,141.08,141.04,0.67]
[1764346534288,10.75014659,141.08,141.04,0.67]
[1764346534763,11.14014659,141.08,141.04,0.67]
[1764346535181,3.66182531,141.07,141.04,0.67]
[1764346536500,28.86058889,141.08,141.04,0.67]
[1764346537896,10.75014659,141.08,141.04,0.67]
[1764346538576,114.84014659,141.08,141.04,0.67]
[1764346539378,111.17832128,141.08,141.04,7.7600853]
[1764346539691,114.84014659,141.08,141.04,7.7600853]
[1764346539862,114.84014659,141.08,141.05,0.67]
[1764346540063,21.37853133,141.11,141.06,3.66182531]
[1764346540272,21.37853133,141.11,141.07,0.28432314]
[1764346540478,17.71670602,141.11,141.07,4.61614845]
[1764346540960,24.80337599,141.11,141.08,0.72]
[1764346542990,28.4652013,141.11,141.08,0.72]
[1764346543291,0.2,141.12,141.1,0.28432314]
[1764346543792,0.2,141.12,141.1,1.00432314]
[1764346544482,0.2,141.12,141.11,0.72]
[1764346547372,0.2,141.12,141.1,1.00432314]
[1764346547799,0.59,141.12,141.1,0.28432314]
[1764346547998,0.2,141.12,141.1,0.28432314]
[1764346548172,0.2,141.12,141.1,1.00432314]
[1764346548798,0.2,141.12,141.11,0.72]
[1764346551074,0.2,141.12,141.1,0.28432314]
[1764346551475,11.33806401,141.12,141.07,0.72]
[1764346551773,11.33806401,141.12,141.08,9.81426806]
[1764346551976,3.66182531,141.1,141.06,19.75912682]
[1764346552192,3.66182531,141.1,141.06,10.2291819]
[1764346552383,4.05182531,141.09,141.06,3.14]
[1764346552700,3.66182531,141.09,141.06,3.86]
[1764346553172,7.08767453,141.09,141.06,3.86]
[1764346553379,3.66182531,141.08,141.06,3.14]
[1764346553599,10.74949984,141.09,141.06,3.86]
[1764346553972,7.08737643,141.1,141.07,0.28432314]
[1764346554300,7.08737643,141.1,141.07,4.66614845]
[1764346554602,7.08737643,141.1,141.08,0.72]
[1764346554795,0.2,141.12,141.09,0.28432314]
[1764346555007,0.2,141.12,141.09,12.75609337]
[1764346555302,0.2,141.12,141.11,12.75609337]
[1764346555707,0.2,141.12,141.11,13.47609337]
[1764346557381,0.2,141.12,141.11,20.56276334]
[1764346557582,0.2,141.12,141.11,23.70276334]
[1764346560806,0.2,141.12,141.11,14.60849528]
[1764346560992,0.2,141.12,141.11,14.75065685]
[1764346561194,0.2,141.12,141.11,14.89281842]
[1764346564613,0.2,141.12,141.11,11.23099311]
[1764346564915,0.2,141.12,141.11,7.37099311]
[1764346565087,0.2,141.12,141.11,8.09099311]
[1764346565291,0.2,141.12,141.11,23.70276334]
[1764346566910,0.2,141.12,141.11,16.18093803]
[1764346567308,0.2,141.12,141.11,16.90093803]
[1764346567503,0.2,141.12,141.11,7.37099311]
[1764346567817,0.2,141.12,141.11,8.09099311]
[1764346570116,0.2,141.12,141.11,1.00432314]
[1764346571721,0.2,141.12,141.11,0.28432314]
[1764346571916,11.33812041,141.12,141.04,3.66182531]
[1764346572122,11.33812041,141.12,141.05,3.14]
[1764346572123,3.66182531,141.09,141.05,3.14]